[Event "*** SCC Grand Prix: Titled Tuesday Blitz"]
[Site "Chess.com"]
[Date "2020.06.02"]
[Round "6"]
[White "Love_craft"]
[Black "saikrishnaReturns"]
[Result "0-1"]
[WhiteElo "2453"]
[BlackElo "2640"]
[TimeControl "180+1"]
[EndTime "11:07:25 PDT"]
[Termination "saikrishnaReturns won by checkmate"]

1. d4 {[%clk 0:03:00.9]} 1... Nf6 {[%clk 0:02:55.2]} 2. c4 {[%clk 0:03:00.2]}
2... g6 {[%clk 0:02:55.4]} 3. Nc3 {[%clk 0:02:59.5]} 3... Bg7 {[%clk 0:02:56.3]}
4. e4 {[%clk 0:02:59.8]} 4... d6 {[%clk 0:02:56.9]} 5. Be2 {[%clk 0:03:00.1]}
5... O-O {[%clk 0:02:57.5]} 6. Be3 {[%clk 0:03:00.7]} 6... e5 {[%clk 0:02:57.2]}
7. d5 {[%clk 0:03:01.2]} 7... Ne8 {[%clk 0:02:54.6]} 8. g4 {[%clk 0:03:00.6]}
8... f5 {[%clk 0:02:54]} 9. gxf5 {[%clk 0:03:00.3]} 9... gxf5 {[%clk 0:02:54.9]}
10. Nf3 {[%clk 0:02:49.5]} 10... f4 {[%clk 0:02:53.8]} 11. Bd2 {[%clk
0:02:49.6]} 11... Kh8 {[%clk 0:02:51]} 12. Qc2 {[%clk 0:02:49.2]} 12... Bf6
{[%clk 0:02:47]} 13. O-O-O {[%clk 0:02:48.8]} 13... Bh3 {[%clk 0:02:46.8]} 14.
Kb1 {[%clk 0:02:16.5]} 14... Nd7 {[%clk 0:02:45.6]} 15. Rhg1 {[%clk 0:02:15.2]}
15... Nc5 {[%clk 0:02:41.3]} 16. Bf1 {[%clk 0:02:15.2]} 16... Qd7 {[%clk
0:02:38.3]} 17. Bc1 {[%clk 0:01:51]} 17... Ng7 {[%clk 0:02:34.6]} 18. Qe2 {[%clk
0:01:43]} 18... a5 {[%clk 0:02:30]} 19. Bg2 {[%clk 0:01:11.2]} 19... Rg8 {[%clk
0:02:23.9]} 20. Qf1 {[%clk 0:00:52.8]} 20... Bg4 {[%clk 0:02:21.8]} 21. h3
{[%clk 0:00:45.1]} 21... Bh5 {[%clk 0:02:21]} 22. Qe2 {[%clk 0:00:35.3]} 22...
a4 {[%clk 0:02:13.1]} 23. Rh1 {[%clk 0:00:34.4]} 23... Nf5 {[%clk 0:02:10.2]}
24. exf5 {[%clk 0:00:19.6]} 24... Qxf5+ {[%clk 0:02:06.2]} 25. Qc2 {[%clk
0:00:12.6]} 25... Qxc2+ {[%clk 0:02:05.2]} 26. Kxc2 {[%clk 0:00:13.5]} 26...
Rxg2 {[%clk 0:02:05.2]} 27. Ne1 {[%clk 0:00:02.4]} 27... Bg6+ {[%clk 0:02:03.6]}
28. Kd2 {[%clk 0:00:01.9]} 28... Rxf2+ {[%clk 0:02:02.9]} 29. Ne2 {[%clk
0:00:02.4]} 29... f3 {[%clk 0:02:03]} 30. Ke3 {[%clk 0:00:02.2]} 30... Rxe2+
{[%clk 0:01:58.7]} 31. Kxf3 {[%clk 0:00:02.7]} 31... Bh5+ {[%clk 0:01:58.2]} 32.
Kg3 {[%clk 0:00:02.8]} 32... Rg8+ {[%clk 0:01:58.3]} 33. Bg5 {[%clk 0:00:02.1]}
33... Rxg5+ {[%clk 0:01:58.1]} 34. Kh4 {[%clk 0:00:03]} 34... Rf5+ {[%clk
0:01:57.8]} 35. Kg3 {[%clk 0:00:03.1]} 35... Ne4# {[%clk 0:01:58.1]} 0-1

[Event "*** SCC Grand Prix: Titled Tuesday Blitz"]
[Site "Chess.com"]
[Date "2020.06.02"]
[Round "6"]
[White "FairChess_on_YouTube"]
[Black "abykhovsky"]
[Result "0-1"]
[WhiteElo "2999"]
[BlackElo "2807"]
[TimeControl "180+1"]
[EndTime "11:07:27 PDT"]
[Termination "abykhovsky won by resignation"]

1. Nf3 {[%clk 0:03:00.9]} 1... Nf6 {[%clk 0:02:58.6]} 2. c4 {[%clk 0:03:01.1]}
2... c5 {[%clk 0:02:57.3]} 3. Nc3 {[%clk 0:03:01.2]} 3... Nc6 {[%clk 0:02:53.4]}
4. d4 {[%clk 0:02:59.9]} 4... cxd4 {[%clk 0:02:54.3]} 5. Nxd4 {[%clk 0:03:00.1]}
5... e6 {[%clk 0:02:54]} 6. e3 {[%clk 0:03:00.2]} 6... Be7 {[%clk 0:02:53.2]} 7.
Be2 {[%clk 0:02:59.8]} 7... O-O {[%clk 0:02:53.2]} 8. O-O {[%clk 0:03:00]} 8...
b6 {[%clk 0:02:53.4]} 9. b3 {[%clk 0:02:59.1]} 9... Bb7 {[%clk 0:02:53.7]} 10.
Bb2 {[%clk 0:02:59.5]} 10... Rc8 {[%clk 0:02:53.8]} 11. Rc1 {[%clk 0:02:59.5]}
11... Qc7 {[%clk 0:02:52.6]} 12. Bf3 {[%clk 0:02:58.3]} 12... Qb8 {[%clk
0:02:52.2]} 13. h3 {[%clk 0:02:51.3]} 13... Rfd8 {[%clk 0:02:51.7]} 14. Nde2
{[%clk 0:02:44.9]} 14... d5 {[%clk 0:02:42.9]} 15. cxd5 {[%clk 0:02:44.9]} 15...
Nb4 {[%clk 0:02:43.1]} 16. Nf4 {[%clk 0:02:44.9]} 16... Nbxd5 {[%clk 0:02:36.8]}
17. Ncxd5 {[%clk 0:02:40.1]} 17... Nxd5 {[%clk 0:02:36.2]} 18. Bxd5 {[%clk
0:02:34.2]} 18... Bxd5 {[%clk 0:02:34.9]} 19. Qg4 {[%clk 0:02:28.5]} 19... g6
{[%clk 0:02:26.2]} 20. Rxc8 {[%clk 0:02:08.4]} 20... Qxc8 {[%clk 0:02:20.9]} 21.
Nh5 {[%clk 0:02:05.9]} 21... e5 {[%clk 0:02:17.9]} 22. Qg3 {[%clk 0:01:56.8]}
22... Qf5 {[%clk 0:02:03.8]} 23. Bxe5 {[%clk 0:01:20.7]} 23... Qxh5 {[%clk
0:02:02.1]} 24. Ba1 {[%clk 0:01:19.4]} 24... Qg5 {[%clk 0:01:56.8]} 25. Qh2
{[%clk 0:01:19.5]} 25... Bf3 {[%clk 0:01:44.9]} 26. Rc1 {[%clk 0:01:14.6]} 26...
Ba3 {[%clk 0:01:43.1]} 27. Rf1 {[%clk 0:01:03.7]} 27... Bd6 {[%clk 0:01:39]} 28.
Qh1 {[%clk 0:01:04]} 28... Rc8 {[%clk 0:01:34.1]} 29. Bd4 {[%clk 0:00:50.8]}
29... Rc2 {[%clk 0:01:27.9]} 30. e4 {[%clk 0:00:51.3]} 30... Bxe4 {[%clk
0:01:24.6]} 31. Be3 {[%clk 0:00:51.2]} 31... Qd5 {[%clk 0:01:17.1]} 32. h4
{[%clk 0:00:50.4]} 32... h5 {[%clk 0:01:15.8]} 33. Qh3 {[%clk 0:00:50.3]} 33...
Bf5 {[%clk 0:01:15.8]} 34. Qf3 {[%clk 0:00:48.5]} 34... Qxf3 {[%clk 0:01:15.4]}
35. gxf3 {[%clk 0:00:49.4]} 35... Rxa2 {[%clk 0:01:15.5]} 36. Rd1 {[%clk
0:00:49.4]} 36... Bc5 {[%clk 0:01:14.4]} 37. Bg5 {[%clk 0:00:46.8]} 37... Kg7
{[%clk 0:01:13.8]} 0-1

[Event "*** SCC Grand Prix: Titled Tuesday Blitz"]
[Site "Chess.com"]
[Date "2020.06.02"]
[Round "6"]
[White "crazy_but_lazy"]
[Black "CzechmVIII"]
[Result "1-0"]
[WhiteElo "2400"]
[BlackElo "2178"]
[TimeControl "180+1"]
[EndTime "11:07:27 PDT"]
[Termination "crazy_but_lazy won by resignation"]

1. d4 {[%clk 0:03:00.9]} 1... Nf6 {[%clk 0:02:59.4]} 2. c4 {[%clk 0:03:01]} 2...
c5 {[%clk 0:02:59.5]} 3. Nf3 {[%clk 0:03:01.3]} 3... cxd4 {[%clk 0:02:59]} 4.
Nxd4 {[%clk 0:03:02.2]} 4... b6 {[%clk 0:02:59.4]} 5. Nc3 {[%clk 0:02:58.5]}
5... Bb7 {[%clk 0:02:59.2]} 6. f3 {[%clk 0:02:58.8]} 6... d6 {[%clk 0:02:59.5]}
7. e4 {[%clk 0:02:59.2]} 7... e6 {[%clk 0:03:00.2]} 8. Be3 {[%clk 0:02:59.7]}
8... Be7 {[%clk 0:03:00.5]} 9. Be2 {[%clk 0:03:00.3]} 9... O-O {[%clk
0:03:00.7]} 10. O-O {[%clk 0:03:00.9]} 10... a6 {[%clk 0:03:01.1]} 11. Qd2
{[%clk 0:02:58.7]} 11... Nbd7 {[%clk 0:03:00.4]} 12. Rfd1 {[%clk 0:02:58.1]}
12... Rc8 {[%clk 0:02:59.6]} 13. Rac1 {[%clk 0:02:58]} 13... Qc7 {[%clk
0:02:59.8]} 14. Bf1 {[%clk 0:02:56.5]} 14... Rfe8 {[%clk 0:02:59.8]} 15. Qf2
{[%clk 0:02:56.4]} 15... Qb8 {[%clk 0:02:57.6]} 16. b3 {[%clk 0:02:49.6]} 16...
Bd8 {[%clk 0:02:55]} 17. g3 {[%clk 0:02:48.3]} 17... Bc7 {[%clk 0:02:54.2]} 18.
Bg2 {[%clk 0:02:47.9]} 18... d5 {[%clk 0:02:30.5]} 19. cxd5 {[%clk 0:02:45.6]}
19... exd5 {[%clk 0:02:30.7]} 20. exd5 {[%clk 0:02:44.9]} 20... Nxd5 {[%clk
0:02:30.3]} 21. Nxd5 {[%clk 0:02:40.4]} 21... Bxd5 {[%clk 0:02:30.4]} 22. Nf5
{[%clk 0:02:39.2]} 22... Be6 {[%clk 0:02:23.3]} 23. Nd4 {[%clk 0:02:36.2]} 23...
Ne5 {[%clk 0:01:41.4]} 24. Nxe6 {[%clk 0:02:33.3]} 24... Rxe6 {[%clk 0:01:13.4]}
25. Bh3 {[%clk 0:02:30.2]} 25... Rf6 {[%clk 0:01:13.7]} 26. f4 {[%clk 0:01:52]}
26... Re8 {[%clk 0:00:56.2]} 27. Bd4 {[%clk 0:01:52.1]} 27... h5 {[%clk
0:00:32]} 28. Qg2 {[%clk 0:01:39.8]} 28... Ng4 {[%clk 0:00:18.9]} 29. Bxg4
{[%clk 0:01:36.4]} 29... hxg4 {[%clk 0:00:18.5]} 30. Bxf6 {[%clk 0:01:36.9]}
30... gxf6 {[%clk 0:00:19.3]} 31. Qc6 {[%clk 0:01:37.2]} 31... Bd8 {[%clk
0:00:13.8]} 32. Qxe8+ {[%clk 0:01:36.8]} 1-0

[Event "*** SCC Grand Prix: Titled Tuesday Blitz"]
[Site "Chess.com"]
[Date "2020.06.02"]
[Round "6"]
[White "Torrentec"]
[Black "simonachess"]
[Result "0-1"]
[WhiteElo "2298"]
[BlackElo "2181"]
[TimeControl "180+1"]
[EndTime "11:07:27 PDT"]
[Termination "simonachess won by resignation"]

1. e4 {[%clk 0:03:00.9]} 1... c5 {[%clk 0:02:58.1]} 2. Nf3 {[%clk 0:03:00.7]}
2... Nc6 {[%clk 0:02:58.5]} 3. Bb5 {[%clk 0:03:00.4]} 3... g6 {[%clk 0:02:54.8]}
4. O-O {[%clk 0:03:00.1]} 4... Bg7 {[%clk 0:02:54.3]} 5. Re1 {[%clk 0:02:58.9]}
5... e5 {[%clk 0:02:53.6]} 6. c3 {[%clk 0:02:57.8]} 6... Nge7 {[%clk 0:02:53.9]}
7. d4 {[%clk 0:02:56.6]} 7... cxd4 {[%clk 0:02:54.3]} 8. cxd4 {[%clk 0:02:56.6]}
8... exd4 {[%clk 0:02:54.9]} 9. e5 {[%clk 0:02:55.4]} 9... a6 {[%clk 0:02:52.7]}
10. Bc4 {[%clk 0:02:54.7]} 10... d5 {[%clk 0:02:45.5]} 11. exd6 {[%clk
0:02:36.8]} 11... Qxd6 {[%clk 0:02:44.5]} 12. Nbd2 {[%clk 0:02:36.5]} 12... O-O
{[%clk 0:02:44.5]} 13. Ne4 {[%clk 0:02:36]} 13... Qc7 {[%clk 0:02:39.7]} 14. Bg5
{[%clk 0:02:33.4]} 14... Bg4 {[%clk 0:02:39.4]} 15. Nf6+ {[%clk 0:02:29.3]}
15... Bxf6 {[%clk 0:02:34]} 16. Bxf6 {[%clk 0:02:30.2]} 16... Rfe8 {[%clk
0:02:23.5]} 17. h3 {[%clk 0:02:26.6]} 17... Qf4 {[%clk 0:02:00.5]} 18. hxg4
{[%clk 0:02:14]} 18... Qxf6 {[%clk 0:01:59.8]} 19. Qd2 {[%clk 0:02:08.3]} 19...
b5 {[%clk 0:01:53.1]} 20. Bb3 {[%clk 0:02:03.4]} 20... Rad8 {[%clk 0:01:50.9]}
21. Qh6 {[%clk 0:01:51.1]} 21... Qg7 {[%clk 0:01:45.7]} 22. Qd2 {[%clk
0:01:43.9]} 22... d3 {[%clk 0:01:28.5]} 23. Ng5 {[%clk 0:01:33.3]} 23... Rf8
{[%clk 0:01:11.9]} 24. Qf4 {[%clk 0:01:30.7]} 24... Rd4 {[%clk 0:01:08.4]} 25.
Qc7 {[%clk 0:01:22.7]} 25... Qf6 {[%clk 0:01:04.2]} 26. Ne4 {[%clk 0:01:11.8]}
26... Qe5 {[%clk 0:00:55.1]} 27. g5 {[%clk 0:01:10.5]} 27... Qxc7 {[%clk
0:00:53.1]} 28. Nf6+ {[%clk 0:01:07.4]} 28... Kg7 {[%clk 0:00:53]} 29. Rac1
{[%clk 0:01:06.3]} 29... h6 {[%clk 0:00:51.5]} 30. Nd5 {[%clk 0:01:03.3]} 30...
Nxd5 {[%clk 0:00:50.6]} 0-1

[Event "*** SCC Grand Prix: Titled Tuesday Blitz"]
[Site "Chess.com"]
[Date "2020.06.02"]
[Round "6"]
[White "Vitor-Moraes"]
[Black "MariaFominykh"]
[Result "0-1"]
[WhiteElo "2011"]
[BlackElo "2268"]
[TimeControl "180+1"]
[EndTime "11:07:27 PDT"]
[Termination "MariaFominykh won by resignation"]

1. e4 {[%clk 0:03:00.9]} 1... e6 {[%clk 0:02:58.1]} 2. d4 {[%clk 0:03:00]} 2...
d5 {[%clk 0:02:58.7]} 3. Nd2 {[%clk 0:03:00.4]} 3... c5 {[%clk 0:02:57.2]} 4.
Ngf3 {[%clk 0:02:59.7]} 4... Nc6 {[%clk 0:02:52.8]} 5. exd5 {[%clk 0:02:59.1]}
5... Qxd5 {[%clk 0:02:51.7]} 6. Bc4 {[%clk 0:02:59.4]} 6... Qd6 {[%clk
0:02:50.6]} 7. O-O {[%clk 0:02:56.3]} 7... cxd4 {[%clk 0:02:49.7]} 8. Re1 {[%clk
0:02:48.7]} 8... Nf6 {[%clk 0:02:48]} 9. Nb3 {[%clk 0:02:48.5]} 9... Be7 {[%clk
0:02:47.1]} 10. Nbxd4 {[%clk 0:02:47.6]} 10... Nxd4 {[%clk 0:02:41.9]} 11. Nxd4
{[%clk 0:02:44.5]} 11... O-O {[%clk 0:02:33.8]} 12. c3 {[%clk 0:02:29.2]} 12...
a6 {[%clk 0:02:28.1]} 13. Qf3 {[%clk 0:02:25.2]} 13... Qc7 {[%clk 0:02:23.5]}
14. Bb3 {[%clk 0:02:19.9]} 14... b5 {[%clk 0:02:15]} 15. Bf4 {[%clk 0:02:19.5]}
15... Qb7 {[%clk 0:02:08.1]} 16. Qe2 {[%clk 0:02:01.3]} 16... Nd5 {[%clk
0:02:03.1]} 17. Bg3 {[%clk 0:01:40.1]} 17... Bg5 {[%clk 0:01:54.5]} 18. Qg4
{[%clk 0:01:24.6]} 18... h6 {[%clk 0:01:40.3]} 19. h4 {[%clk 0:01:23.2]} 19...
Bf6 {[%clk 0:01:30.5]} 20. Rad1 {[%clk 0:01:22]} 20... Nb6 {[%clk 0:01:11.8]}
21. Be5 {[%clk 0:00:59.5]} 21... Nd7 {[%clk 0:01:06.4]} 22. Bf4 {[%clk
0:00:55.1]} 22... e5 {[%clk 0:00:56.9]} 23. Bxh6 {[%clk 0:00:45.1]} 23... exd4
{[%clk 0:00:55.7]} 24. Rd3 {[%clk 0:00:41.4]} 24... Ne5 {[%clk 0:00:54.7]} 0-1

[Event "*** SCC Grand Prix: Titled Tuesday Blitz"]
[Site "Chess.com"]
[Date "2020.06.02"]
[Round "6"]
[White "Diego_FloresQ"]
[Black "Olga_Zhuravleva"]
[Result "0-1"]
[WhiteElo "2421"]
[BlackElo "2267"]
[TimeControl "180+1"]
[EndTime "11:07:31 PDT"]
[Termination "Olga_Zhuravleva won by resignation"]

1. Nf3 {[%clk 0:00:46.4]} 1... Nf6 {[%clk 0:02:58.7]} 2. g3 {[%clk 0:00:47.3]}
2... b6 {[%clk 0:02:57]} 3. Bg2 {[%clk 0:00:48.2]} 3... Bb7 {[%clk 0:02:57.5]}
4. O-O {[%clk 0:00:49.1]} 4... e6 {[%clk 0:02:56.6]} 5. d3 {[%clk 0:00:50]} 5...
c5 {[%clk 0:02:54.7]} 6. e4 {[%clk 0:00:48.4]} 6... d6 {[%clk 0:02:54]} 7. Nbd2
{[%clk 0:00:46.2]} 7... Qc7 {[%clk 0:02:52.3]} 8. Re1 {[%clk 0:00:46.4]} 8...
Nbd7 {[%clk 0:02:49.2]} 9. a4 {[%clk 0:00:46.9]} 9... a6 {[%clk 0:02:48.1]} 10.
Nc4 {[%clk 0:00:43.6]} 10... b5 {[%clk 0:02:42.4]} 11. axb5 {[%clk 0:00:41.6]}
11... axb5 {[%clk 0:02:42.9]} 12. Rxa8+ {[%clk 0:00:40]} 12... Bxa8 {[%clk
0:02:43.8]} 13. Na3 {[%clk 0:00:40.4]} 13... Bc6 {[%clk 0:02:38.4]} 14. Bf4
{[%clk 0:00:37.4]} 14... e5 {[%clk 0:02:36.1]} 15. Be3 {[%clk 0:00:33.7]} 15...
Be7 {[%clk 0:02:35.5]} 16. Nd2 {[%clk 0:00:32.3]} 16... O-O {[%clk 0:02:35.4]}
17. f4 {[%clk 0:00:28.9]} 17... Qb7 {[%clk 0:02:20.7]} 18. f5 {[%clk 0:00:24.4]}
18... d5 {[%clk 0:02:18.7]} 19. g4 {[%clk 0:00:24.2]} 19... h6 {[%clk
0:02:12.4]} 20. h4 {[%clk 0:00:21.2]} 20... dxe4 {[%clk 0:02:06.1]} 21. dxe4
{[%clk 0:00:16.9]} 21... Nxe4 {[%clk 0:02:00]} 22. Nxe4 {[%clk 0:00:17.8]} 22...
Bxe4 {[%clk 0:01:58.7]} 23. Bxe4 {[%clk 0:00:18.7]} 23... Qxe4 {[%clk
0:01:58.2]} 24. Qxd7 {[%clk 0:00:07.8]} 24... Qxg4+ {[%clk 0:01:57.6]} 25. Kf1
{[%clk 0:00:06.1]} 25... Bxh4 {[%clk 0:01:52.8]} 26. Re2 {[%clk 0:00:06]} 26...
Qf3+ {[%clk 0:01:51.7]} 27. Bf2 {[%clk 0:00:06]} 27... Rd8 {[%clk 0:01:35.2]}
28. Qxb5 {[%clk 0:00:01.5]} 28... Rd1+ {[%clk 0:01:33.6]} 0-1

[Event "*** SCC Grand Prix: Titled Tuesday Blitz"]
[Site "Chess.com"]
[Date "2020.06.02"]
[Round "6"]
[White "Redbandit87"]
[Black "Kavyev_Ruslan"]
[Result "0-1"]
[WhiteElo "2335"]
[BlackElo "2536"]
[TimeControl "180+1"]
[EndTime "11:07:35 PDT"]
[Termination "Kavyev_Ruslan won by resignation"]

1. d4 {[%clk 0:02:57.6]} 1... Nf6 {[%clk 0:02:59.9]} 2. Bf4 {[%clk 0:02:56.3]}
2... c5 {[%clk 0:02:59.6]} 3. e3 {[%clk 0:02:56]} 3... Qb6 {[%clk 0:02:59]} 4.
Na3 {[%clk 0:02:54.9]} 4... cxd4 {[%clk 0:02:58.9]} 5. exd4 {[%clk 0:02:54.1]}
5... Nd5 {[%clk 0:02:59.5]} 6. Bg3 {[%clk 0:02:52.6]} 6... Qxb2 {[%clk
0:02:59.3]} 7. Nb5 {[%clk 0:02:51.8]} 7... Qb4+ {[%clk 0:02:38.6]} 8. c3 {[%clk
0:02:37.8]} 8... Qa5 {[%clk 0:02:32.1]} 9. Bc4 {[%clk 0:02:20.6]} 9... a6 {[%clk
0:02:31.7]} 10. Bxd5 {[%clk 0:01:52.7]} 10... axb5 {[%clk 0:02:31.5]} 11. Qb3
{[%clk 0:01:52.1]} 11... e6 {[%clk 0:02:31]} 12. Bf3 {[%clk 0:01:49.9]} 12... d5
{[%clk 0:02:30.9]} 13. Ne2 {[%clk 0:01:49.1]} 13... b4 {[%clk 0:02:29.2]} 14.
O-O {[%clk 0:01:47.4]} 14... bxc3 {[%clk 0:02:28.9]} 15. Nxc3 {[%clk 0:01:47.2]}
15... Bb4 {[%clk 0:02:08.2]} 16. Bxd5 {[%clk 0:01:21]} 16... Bxc3 {[%clk
0:01:55]} 17. Rfc1 {[%clk 0:00:31.7]} 17... Qxd5 {[%clk 0:01:52]} 18. Rxc3
{[%clk 0:00:18.1]} 18... Qxb3 {[%clk 0:01:47.4]} 19. Rxc8+ {[%clk 0:00:17.8]}
19... Kd7 {[%clk 0:01:47.6]} 20. Rxh8 {[%clk 0:00:15.3]} 20... Rxa2 {[%clk
0:01:46.3]} 21. Rc1 {[%clk 0:00:12.6]} 21... Rc2 {[%clk 0:01:45.7]} 22. Rf1
{[%clk 0:00:11.1]} 22... Nc6 {[%clk 0:01:44]} 23. Rxh7 {[%clk 0:00:11.1]} 23...
Nxd4 {[%clk 0:01:39.8]} 24. Rxg7 {[%clk 0:00:11.4]} 24... Ne2+ {[%clk
0:01:38.5]} 25. Kh1 {[%clk 0:00:11.2]} 25... Ke7 {[%clk 0:01:34]} 26. Bh4+
{[%clk 0:00:07.7]} 26... Kf8 {[%clk 0:01:34.4]} 27. Rg4 {[%clk 0:00:06.7]} 27...
Rc4 {[%clk 0:01:33.2]} 28. f4 {[%clk 0:00:05.6]} 28... Qd3 {[%clk 0:01:29.2]}
0-1

[Event "*** SCC Grand Prix: Titled Tuesday Blitz"]
[Site "Chess.com"]
[Date "2020.06.02"]
[Round "6"]
[White "Grandmaster2B"]
[Black "secretsuperstar7"]
[Result "1-0"]
[WhiteElo "2427"]
[BlackElo "2222"]
[TimeControl "180+1"]
[EndTime "11:07:39 PDT"]
[Termination "Grandmaster2B won by resignation"]

1. e4 {[%clk 0:03:00.9]} 1... c5 {[%clk 0:02:58.1]} 2. Nf3 {[%clk 0:02:54.5]}
2... d6 {[%clk 0:02:56.8]} 3. d4 {[%clk 0:02:54.3]} 3... cxd4 {[%clk 0:02:55.6]}
4. Nxd4 {[%clk 0:02:55.2]} 4... Nf6 {[%clk 0:02:54.3]} 5. Nc3 {[%clk 0:02:55.6]}
5... Nc6 {[%clk 0:02:51.6]} 6. f3 {[%clk 0:02:54.6]} 6... e5 {[%clk 0:02:48.7]}
7. Nb3 {[%clk 0:02:52.8]} 7... Be6 {[%clk 0:02:41.7]} 8. Nd5 {[%clk 0:02:51.6]}
8... a5 {[%clk 0:02:10.5]} 9. a4 {[%clk 0:02:43.9]} 9... Nd7 {[%clk 0:01:41]}
10. Be3 {[%clk 0:02:40]} 10... Nc5 {[%clk 0:01:39.6]} 11. Bb5 {[%clk 0:02:29.2]}
11... Be7 {[%clk 0:01:19.9]} 12. O-O {[%clk 0:02:22.4]} 12... O-O {[%clk
0:01:15.5]} 13. c3 {[%clk 0:02:20.2]} 13... Bg5 {[%clk 0:01:11.4]} 14. Bf2
{[%clk 0:02:13.1]} 14... Nd7 {[%clk 0:00:57.2]} 15. Qd3 {[%clk 0:02:01.9]} 15...
f5 {[%clk 0:00:54.3]} 16. Rad1 {[%clk 0:02:01.5]} 16... fxe4 {[%clk 0:00:51.2]}
17. fxe4 {[%clk 0:02:02.4]} 17... Bg4 {[%clk 0:00:50.2]} 18. Rde1 {[%clk
0:01:45]} 18... Qe8 {[%clk 0:00:36.6]} 19. Nc7 {[%clk 0:01:39.6]} 19... Qg6
{[%clk 0:00:36]} 20. Nxa8 {[%clk 0:01:34.8]} 20... Rxa8 {[%clk 0:00:35.9]} 21.
h3 {[%clk 0:01:30.3]} 21... Be6 {[%clk 0:00:27.1]} 22. Qxd6 {[%clk 0:01:17]}
22... Bxb3 {[%clk 0:00:21.1]} 23. Qxd7 {[%clk 0:01:16.7]} 23... Bd2 {[%clk
0:00:15.2]} 24. Qxd2 {[%clk 0:01:09.2]} 24... Be6 {[%clk 0:00:13.1]} 25. Qe3
{[%clk 0:01:06.2]} 1-0

[Event "*** SCC Grand Prix: Titled Tuesday Blitz"]
[Site "Chess.com"]
[Date "2020.06.02"]
[Round "6"]
[White "Giraffe_Chess"]
[Black "Gennady_Kozlov"]
[Result "0-1"]
[WhiteElo "2386"]
[BlackElo "2570"]
[TimeControl "180+1"]
[EndTime "11:07:41 PDT"]
[Termination "Gennady_Kozlov won by checkmate"]

1. d4 {[%clk 0:03:00.9]} 1... e6 {[%clk 0:03:00.9]} 2. Nf3 {[%clk 0:02:59.7]}
2... Nf6 {[%clk 0:03:00]} 3. c4 {[%clk 0:02:58.6]} 3... b6 {[%clk 0:03:00.1]} 4.
g3 {[%clk 0:02:58.6]} 4... Bb7 {[%clk 0:03:01]} 5. Bg2 {[%clk 0:02:58.7]} 5...
Be7 {[%clk 0:03:01.7]} 6. O-O {[%clk 0:02:59]} 6... O-O {[%clk 0:03:02.3]} 7. d5
{[%clk 0:02:59.6]} 7... exd5 {[%clk 0:03:01.6]} 8. Nh4 {[%clk 0:03:00]} 8... Ne4
{[%clk 0:03:00.8]} 9. cxd5 {[%clk 0:02:53.1]} 9... Nd6 {[%clk 0:03:00.7]} 10.
Nf3 {[%clk 0:02:47.6]} 10... Bf6 {[%clk 0:03:00.6]} 11. Nc3 {[%clk 0:02:47.6]}
11... Na6 {[%clk 0:03:00]} 12. e4 {[%clk 0:02:44.1]} 12... Bxc3 {[%clk
0:02:58.6]} 13. bxc3 {[%clk 0:02:45]} 13... Nxe4 {[%clk 0:02:58.8]} 14. Qd4
{[%clk 0:02:42]} 14... Nac5 {[%clk 0:02:58]} 15. Ne5 {[%clk 0:02:33.1]} 15...
Nd6 {[%clk 0:02:54.8]} 16. c4 {[%clk 0:02:22.3]} 16... Qf6 {[%clk 0:02:53.6]}
17. Bb2 {[%clk 0:02:20.8]} 17... Rfe8 {[%clk 0:02:50.1]} 18. Rae1 {[%clk
0:02:13.7]} 18... Nf5 {[%clk 0:02:46.6]} 19. Qf4 {[%clk 0:02:05.7]} 19... d6
{[%clk 0:02:42.1]} 20. Bh3 {[%clk 0:01:30.9]} 20... dxe5 {[%clk 0:02:39.7]} 21.
Qxf5 {[%clk 0:01:28.9]} 21... Qxf5 {[%clk 0:02:39.8]} 22. Bxf5 {[%clk
0:01:29.8]} 22... f6 {[%clk 0:02:39.7]} 23. f4 {[%clk 0:01:22.2]} 23... e4
{[%clk 0:02:32.8]} 24. Bd4 {[%clk 0:01:10.3]} 24... g6 {[%clk 0:02:32.8]} 25.
Bxc5 {[%clk 0:01:08]} 25... gxf5 {[%clk 0:02:32.5]} 26. Bd4 {[%clk 0:01:07.9]}
26... Kf7 {[%clk 0:02:33.2]} 27. Kf2 {[%clk 0:01:07.4]} 27... c6 {[%clk
0:02:30.4]} 28. dxc6 {[%clk 0:00:53.9]} 28... Bxc6 {[%clk 0:02:31.3]} 29. Ke3
{[%clk 0:00:54.1]} 29... Rac8 {[%clk 0:02:29.3]} 30. Rc1 {[%clk 0:00:53.1]}
30... Bb7 {[%clk 0:02:29.3]} 31. c5 {[%clk 0:00:52.8]} 31... bxc5 {[%clk
0:02:28.7]} 32. Rxc5 {[%clk 0:00:53.7]} 32... Rxc5 {[%clk 0:02:27.6]} 33. Bxc5
{[%clk 0:00:54.6]} 33... Rc8 {[%clk 0:02:27.6]} 34. Bxa7 {[%clk 0:00:45.8]}
34... Rc3+ {[%clk 0:02:27.2]} 35. Kd2 {[%clk 0:00:24.5]} 35... Ra3 {[%clk
0:02:28.1]} 36. Rf2 {[%clk 0:00:23.9]} 36... Rxa2+ {[%clk 0:02:25.9]} 37. Ke3
{[%clk 0:00:23.2]} 37... Rxa7 {[%clk 0:02:26.8]} 38. Rc2 {[%clk 0:00:21.2]}
38... Bd5 {[%clk 0:02:25.1]} 39. Rc5 {[%clk 0:00:20.9]} 39... Ke6 {[%clk
0:02:24]} 40. Rb5 {[%clk 0:00:20.1]} 40... Ra3+ {[%clk 0:02:23.2]} 41. Kd4
{[%clk 0:00:20.5]} 41... Rd3+ {[%clk 0:02:22.9]} 42. Kc5 {[%clk 0:00:21]} 42...
e3 {[%clk 0:02:22.8]} 43. Rb6+ {[%clk 0:00:21.3]} 43... Kf7 {[%clk 0:02:22.9]}
44. Rb8 {[%clk 0:00:21.5]} 44... e2 {[%clk 0:02:22.2]} 45. Rh8 {[%clk
0:00:22.1]} 45... e1=Q {[%clk 0:02:21.7]} 46. Rxh7+ {[%clk 0:00:23]} 46... Kg6
{[%clk 0:02:21.4]} 47. Rd7 {[%clk 0:00:22.2]} 47... Qc3+ {[%clk 0:02:20]} 48.
Kd6 {[%clk 0:00:21.7]} 48... Qc6+ {[%clk 0:02:18.6]} 49. Ke7 {[%clk 0:00:22.6]}
49... Re3+ {[%clk 0:02:18.6]} 50. Kf8 {[%clk 0:00:22.9]} 50... Qxd7 {[%clk
0:02:17.3]} 51. h4 {[%clk 0:00:21.3]} 51... Rxg3 {[%clk 0:02:13.3]} 52. h5+
{[%clk 0:00:20.6]} 52... Kh7 {[%clk 0:02:14.2]} 53. h6 {[%clk 0:00:20.8]} 53...
Rg5 {[%clk 0:02:09.9]} 54. fxg5 {[%clk 0:00:19.4]} 54... Kg6 {[%clk 0:02:09.8]}
55. h7 {[%clk 0:00:19.3]} 55... Qd6+ {[%clk 0:02:07.2]} 56. Ke8 {[%clk
0:00:17.8]} 56... Bf7# {[%clk 0:02:07.9]} 0-1